bitfinex/quotes_ETHUSD_20230119
["timestamp","ask_amount","ask_price","bid_price","bid_amount"]
[1674147690198,0.14844693,1536.9,1536.8,15.203752]
[1674147691037,0.14844693,1536.9,1536.8,15.403752]
[1674147693910,0.14844693,1536.9,1536.8,18.403752]
[1674147694136,0.03852358,1537.0,1536.9,1.5]
[1674147694303,0.03852358,1537.0,1536.9,17.8635752]
[1674147694512,0.03852358,1537.0,1536.9,17.9295752]
[1674147694865,0.03852358,1537.0,1536.9,21.1595752]
[1674147695049,0.03852358,1537.0,1536.9,20.9295752]
[1674147697349,0.03852358,1537.0,1536.9,19.4195752]
[1674147697792,0.03852358,1537.0,1536.9,19.6495752]
[1674147698508,0.03852358,1537.0,1536.9,19.65474159]
[1674147699781,0.03852358,1537.0,1536.9,21.17974159]
[1674147700006,0.03852358,1537.0,1536.9,28.78694159]
[1674147701513,0.03852358,1537.0,1536.9,30.30294159]
[1674147701684,0.14844693,1537.2,1537.0,1.61504716]
[1674147701897,0.14844693,1537.2,1537.1,27.92450472]
[1674147702245,0.14844693,1537.2,1537.1,32.12014746]
[1674147702458,0.14844693,1537.2,1537.1,41.42740183]
[1674147702768,0.14844693,1537.2,1537.1,39.73294746]
[1674147702939,0.14844693,1537.2,1537.1,38.60330472]
[1674147703163,0.14844693,1537.2,1537.1,39.73297534]
[1674147703359,0.14844693,1537.2,1537.1,38.60330472]
[1674147705926,0.14844693,1537.2,1537.1,38.60847045]
[1674147706410,0.14844693,1537.2,1537.1,37.09847045]
[1674147706817,0.14844693,1537.2,1537.1,23.69546573]
[1674147707021,0.14844693,1537.2,1537.1,13.08266573]
[1674147707583,0.14844693,1537.2,1537.1,6.57691573]
[1674147707920,0.14844693,1537.2,1537.1,0.07116573]
[1674147708128,0.14844693,1537.2,1537.1,0.00516573]
[1674147708970,0.14844693,1537.2,1537.1,3.00516573]
[1674147711131,0.14844693,1537.2,1537.1,0.00516573]
[1674147711762,0.14844693,1537.2,1537.1,0.20516573]
[1674147715999,0.14844693,1537.2,1537.1,1.70516573]
[1674147716184,0.14844693,1537.2,1537.1,0.20516573]
[1674147717027,0.14844693,1537.2,1537.1,0.2]
[1674147717322,1.82939162,1537.2,1537.1,0.2]
[1674147717535,16.36205162,1537.2,1537.1,0.2]
[1674147717749,17.10612254,1537.2,1537.1,0.2]
[1674147718321,16.95612254,1537.2,1537.1,0.2]
[1674147720071,18.46122892,1537.2,1537.1,0.2]
[1674147720548,17.97322892,1537.2,1537.1,0.2]
[1674147721745,21.94194499,1537.2,1537.1,0.2]
[1674147721963,20.92483861,1537.2,1537.1,0.2]
[1674147722277,22.44983861,1537.2,1537.1,0.2]
[1674147722486,25.93783861,1537.2,1537.1,0.2]
[1674147723754,27.63304499,1537.2,1537.1,0.2]
[1674147724093,25.93783861,1537.2,1537.1,0.2]
[1674147724476,27.63304499,1537.2,1537.1,0.2]
[1674147725744,26.27800559,1537.2,1537.1,0.2]
[1674147725980,27.63472083,1537.2,1537.1,0.2]
[1674147726193,26.12089877,1537.2,1537.1,0.2]
[1674147726442,25.4430118,1537.2,1537.1,0.2]
[1674147726628,24.08667169,1537.2,1537.1,0.2]
[1674147727047,24.76492788,1537.2,1537.1,0.2]
[1674147728019,23.74760847,1537.2,1537.1,0.2]
[1674147728399,24.76492788,1537.2,1537.1,0.2]
[1674147730692,27.63489877,1537.2,1537.1,0.2]
[1674147732312,26.93549109,1537.2,1537.1,0.2]
[1674147732995,26.93549109,1537.2,1537.0,0.11504716]
[1674147732996,1.5,1537.1,1537.0,0.11504716]
[1674147733206,1.5,1537.0,1536.8,0.25]
[1674147733486,28.86025418,1536.9,1536.4,7.3176]
[1674147733656,1.517,1536.5,1536.4,7.3176]
[1674147733811,1.517,1536.5,1536.4,0.066]
[1674147734022,1.517,1536.5,1536.3,0.0515257]
[1674147734258,1.514,1536.4,1536.3,0.0515257]
[1674147734601,0.83575595,1536.4,1536.3,0.0515257]
[1674147736078,24.25590772,1536.6,1536.4,0.83575595]
[1674147737019,0.11900001,1536.5,1536.4,0.83575595]
[1674147742639,0.11900001,1536.5,1536.4,2.33575595]
[1674147742894,0.11900001,1536.5,1536.4,0.83575595]
[1674147743050,0.11900001,1536.5,1536.4,1.77961337]
[1674147743266,0.11900001,1536.5,1536.4,3.27961337]
[1674147743479,0.11900001,1536.5,1536.4,1.77961337]
[1674147744042,0.11900001,1536.5,1536.4,3.27961337]
[1674147744900,0.11900001,1536.5,1536.4,1.77961337]
[1674147745123,0.11900001,1536.5,1536.4,3.27961337]
[1674147746041,0.11900001,1536.5,1536.4,1.77961337]
[1674147747112,0.11900001,1536.5,1536.4,3.27961337]
[1674147747860,0.11900001,1536.5,1536.4,1.77961337]
[1674147748082,0.11900001,1536.5,1536.4,3.27961337]
[1674147748963,0.11900001,1536.5,1536.4,4.79261337]
[1674147749173,0.11900001,1536.5,1536.4,21.94021324]
[1674147749382,0.11900001,1536.5,1536.4,23.70141288]
[1674147749638,0.11900001,1536.5,1536.4,25.90662412]
[1674147751302,0.11900001,1536.5,1536.4,27.15694098]
[1674147751525,16.22293772,1536.9,1536.6,13.01565]
[1674147751702,0.066,1536.9,1536.7,1.525]
[1674147751917,0.05900001,1537.0,1536.7,1.525]
[1674147751918,0.05900001,1537.0,1536.8,1.515]
[1674147752126,0.05900001,1537.0,1536.9,0.1515]
[1674147752539,0.05900001,1537.0,1536.9,3.1765]
[1674147752743,0.05900001,1537.0,1536.9,12.6831]
[1674147753002,0.05900001,1537.0,1536.9,12.7491]
[1674147753741,0.05900001,1537.0,1536.9,12.75426639]
[1674147754166,0.05900001,1537.0,1536.9,20.58466639]
[1674147755545,0.05900001,1537.0,1536.9,29.96507288]
[1674147756166,0.05900001,1537.0,1536.9,28.83526639]
[1674147756167,1e-08,1537.0,1536.9,28.83526639]
[1674147756737,1e-08,1537.0,1536.9,29.96508046]
[1674147757538,1e-08,1537.0,1536.9,33.77232692]
[1674147757692,1e-08,1537.0,1536.9,38.14984088]
[1674147758039,1e-08,1537.0,1536.9,39.17015774]
[1674147758214,1e-08,1537.0,1536.9,48.20124088]
[1674147759161,1e-08,1537.0,1536.9,55.03724088]
[1674147759371,1e-08,1537.0,1536.9,55.44484427]
[1674147761743,1e-08,1537.0,1536.9,53.91984427]
[1674147762135,1e-08,1537.0,1536.9,53.43174427]
[1674147762635,1e-08,1537.0,1536.9,52.75091884]
[1674147763324,1e-08,1537.0,1536.9,48.94367238]
[1674147763474,1e-08,1537.0,1536.9,52.75091884]
[1674147764176,1e-08,1537.0,1536.9,51.05633031]
[1674147764330,1e-08,1537.0,1536.9,52.7508136]
[1674147766436,0.18603381,1537.3,1537.1,26.023]
[1674147766644,0.18603381,1537.3,1537.2,7.3573]
[1674147766894,0.18603381,1537.3,1537.2,20.43396]
[1674147767273,0.18603381,1537.3,1537.2,30.34816]
[1674147767484,0.18603381,1537.3,1537.2,31.87316]
[1674147768176,0.1698453,1537.4,1537.2,31.87316]
[1674147768340,0.1698453,1537.4,1537.3,19.19589317]
[1674147768341,0.0008453,1537.4,1537.3,19.19589317]
[1674147768553,0.0008453,1537.4,1537.3,34.37238246]
[1674147768890,0.0008453,1537.4,1537.3,37.60326976]
[1674147770147,0.0008453,1537.4,1537.3,34.77998585]
[1674147770528,0.0008453,1537.4,1537.3,41.91158585]
[1674147770742,0.0008453,1537.4,1537.3,29.74333939]
[1674147770992,0.0008453,1537.4,1537.3,36.57933939]
[1674147771641,0.0008453,1537.4,1537.3,29.74333939]
[1674147772537,0.0008453,1537.4,1537.3,33.55058585]
[1674147772906,0.0008453,1537.4,1537.3,29.74333939]
[1674147773652,0.0008453,1537.4,1537.3,29.335736]
[1674147773860,0.0008453,1537.4,1537.3,33.14229233]
[1674147774590,0.18084008,1538.0,1537.9,20.7859553]
[1674147774802,0.18084008,1538.0,1537.9,21.0819553]
[1674147775326,0.18084008,1538.0,1537.9,34.60882083]
[1674147775693,0.18084008,1538.0,1537.9,33.09382083]
[1674147776185,1e-08,1538.0,1537.9,33.09382083]
[1674147776337,1e-08,1538.0,1537.9,34.61882083]
[1674147776944,1e-08,1538.0,1537.9,41.45482083]
[1674147777207,1e-08,1538.0,1537.9,35.02642422]
[1674147777793,1e-08,1538.0,1537.9,43.38742422]
[1674147778646,1e-08,1538.0,1537.9,41.86242422]
[1674147780333,1e-08,1538.0,1537.9,35.02642422]
[1674147780650,1e-08,1538.0,1537.9,19.8549553]
[1674147782239,1e-08,1538.0,1537.9,22.8549553]
[1674147782647,1e-08,1538.0,1537.9,23.0849553]
[1674147786370,1e-08,1538.0,1537.9,24.5949553]
[1674147790841,0.17628463,1538.2,1538.0,0.00399999]
[1674147791062,0.17628463,1538.2,1538.1,29.04108]
[1674147791404,0.17628463,1538.2,1538.1,32.51468339]
[1674147791625,0.17628463,1538.2,1538.1,32.99468339]
[1674147791948,0.17628463,1538.2,1538.1,32.98068339]
[1674147792249,0.17628463,1538.2,1538.1,45.05357128]
[1674147793689,0.17628463,1538.2,1538.1,6.80352]
[1674147793926,0.17628463,1538.2,1538.1,0.316]
[1674147794110,0.17628463,1538.2,1538.1,0.25]
[1674147794759,1.69028463,1538.2,1538.1,0.25]
[1674147800107,3.19028463,1538.2,1538.1,0.25]
[1674147800692,3.31607509,1538.2,1538.1,0.25]
[1674147800876,4.81607509,1538.2,1538.1,0.25]
[1674147801101,11.31717509,1538.2,1538.1,0.25]
[1674147801288,9.88317509,1538.2,1538.1,0.25]
[1674147801929,11.38317509,1538.2,1538.1,0.25]
[1674147803750,17.88427509,1538.2,1538.1,0.25]
[1674147804181,19.40627509,1538.2,1538.1,0.25]
[1674147806137,20.08391724,1538.2,1538.1,0.25]
[1674147806599,3.025,1538.1,1538.0,0.00399999]
[1674147806926,22.23160822,1538.1,1538.0,0.00399999]
[1674147807084,38.79267603,1538.1,1538.0,0.00399999]
[1674147807296,45.89098162,1538.1,1537.9,0.0318453]
[1674147807527,32.47673437,1538.0,1537.9,0.0318453]
[1674147807760,32.54273437,1538.0,1537.9,0.0318453]
[1674147807928,36.82958477,1538.0,1537.9,0.0008453]
[1674147808156,1.5,1537.9,1537.4,0.00205532]
[1674147808374,3.032,1537.5,1537.4,0.00205532]
[1674147808545,16.04012,1537.5,1537.4,0.00205532]
[1674147808754,16.10612,1537.5,1537.4,0.00205532]
[1674147809452,14.58912,1537.5,1537.4,0.00205532]
[1674147810267,16.21491046,1537.5,1537.4,0.00205532]
[1674147811227,14.69991046,1537.5,1537.4,0.00205532]
[1674147811441,13.07412,1537.5,1537.4,0.00205532]
[1674147811591,6.57006,1537.5,1537.4,0.00205532]
[1674147812014,5.36520339,1537.5,1537.4,0.00205532]
[1674147812648,0.066,1537.5,1537.4,1.28605532]
[1674147812856,16.22293772,1537.6,1537.4,1.41982557]
[1674147813331,0.066,1537.6,1537.4,0.13582557]
[1674147813523,6.56933,1537.7,1537.4,0.13582557]
[1674147815391,6.56933,1537.7,1537.4,0.00722004]
[1674147815637,13.07266,1537.7,1537.4,0.00722004]
[1674147815814,14.57266,1537.7,1537.4,0.00722004]
[1674147816028,13.07266,1537.7,1537.4,0.00722004]
[1674147816704,14.57266,1537.7,1537.4,0.00722004]
[1674147816851,13.07266,1537.7,1537.4,0.00722004]
[1674147817062,16.70684218,1537.7,1537.4,0.00722004]
[1674147817308,18.22384218,1537.7,1537.4,0.00722004]
[1674147818063,18.22384218,1537.7,1537.4,0.25722004]
[1674147818379,13.07266,1537.7,1537.4,0.25722004]
[1674147818538,6.56933,1537.7,1537.4,0.25722004]
[1674147823966,6.56933,1537.7,1537.4,0.25205532]
[1674147825340,8.08633,1537.7,1537.4,0.25205532]
[1674147825556,14.58966,1537.7,1537.4,0.25205532]
[1674147827063,13.07266,1537.7,1537.4,0.25205532]
[1674147827276,13.07266,1537.7,1537.4,0.57726085]
[1674147828379,13.07266,1537.7,1537.4,0.25205532]
[1674147828590,14.58666,1537.7,1537.4,0.25205532]
[1674147828956,1.5,1537.6,1537.4,0.25205532]
[1674147829281,13.00812,1537.5,1537.4,0.25205532]
[1674147829489,13.07412,1537.5,1537.4,0.25205532]
[1674147835074,15.184029,1537.5,1537.4,0.24839406]
[1674147835615,13.07412,1537.5,1537.4,0.24839406]
[1674147836224,12.39635596,1537.5,1537.4,0.24839406]
[1674147839944,13.91435596,1537.5,1537.4,0.24839406]
[1674147845689,12.39635596,1537.5,1537.4,0.24839406]
[1674147848210,13.92135596,1537.5,1537.4,0.24839406]
[1674147848413,16.03176127,1537.5,1537.4,0.24839406]
[1674147849994,12.39635596,1537.5,1537.4,0.24839406]
[1674147852360,22.62514307,1537.5,1537.4,0.24839406]
[1674147852503,24.13103374,1537.5,1537.4,0.24839406]
[1674147852943,23.11294307,1537.5,1537.4,0.24839406]
[1674147853267,29.25108278,1537.5,1537.4,0.24839406]
[1674147853480,39.26102986,1537.5,1537.1,0.04175358]
[1674147853712,22.54999,1537.2,1537.1,0.04175358]
[1674147853926,23.10389,1537.2,1537.1,0.04175358]
[1674147854506,21.58289,1537.2,1537.1,0.04175358]
[1674147854722,20.06989,1537.2,1537.1,0.04175358]
[1674147854981,0.5539,1537.2,1537.1,1.28875358]
[1674147855308,0.066,1537.5,1537.2,1.1390709]
[1674147855457,6.56995,1537.6,1537.2,5.6640709]
[1674147855829,6.56995,1537.6,1537.3,2.06640709]
[1674147855978,6.56995,1537.6,1537.3,5.06640709]
[1674147856187,6.56995,1537.6,1537.3,5.13240709]
[1674147858665,0.066,1537.6,1537.3,5.13240709]
[1674147858817,14.63775,1537.7,1537.3,5.13240709]
[1674147859026,14.63775,1537.7,1537.4,0.51324071]
[1674147859991,6.56925,1537.7,1537.4,0.51324071]
[1674147862505,0.066,1537.7,1537.4,2.02324071]
[1674147862716,16.52556,1537.8,1537.4,2.02324071]
[1674147862953,17.20568859,1537.8,1537.5,0.20232407]
[1674147863357,0.066,1537.8,1537.5,8.22218407]
[1674147863707,8.26842148,1538.0,1537.6,2.55221841]
[1674147863853,0.68012859,1537.9,1537.6,1.05221841]
[1674147868428,14.77060148,1538.0,1537.6,1.05221841]
[1674147868950,0.74612859,1538.0,1537.7,1.5]
[1674147869163,0.68012859,1538.0,1537.7,3.41672184]
[1674147869425,14.57726289,1538.1,1537.7,3.41672184]
[1674147869426,14.23719859,1538.1,1537.7,3.41672184]
[1674147871456,13.55707,1538.1,1537.7,3.41672184]
[1674147871673,7.05523,1538.1,1537.8,0.34167218]
[1674147871936,6.56753,1538.1,1537.8,0.34167218]
[1674147875304,0.066,1538.1,1537.8,0.34167218]
[1674147875462,31.22464322,1538.2,1537.8,0.34167218]
[1674147877854,35.16614072,1538.2,1537.7,27.23770184]
[1674147879058,31.22076232,1538.2,1537.7,27.23770184]
[1674147879288,30.54063373,1538.2,1537.8,1.5]
[1674147880168,24.03921373,1538.2,1537.8,1.5]
[1674147880325,24.03921373,1538.2,1537.8,3.0]
[1674147880684,24.03921373,1538.2,1537.8,4.5]
[1674147880895,24.03921373,1538.2,1537.9,0.45]
[1674147881493,6.73981373,1538.2,1537.9,0.45]
[1674147882546,0.23840373,1538.2,1537.9,0.45]
[1674147882761,0.17240373,1538.2,1537.9,0.45]
[1674147884957,0.17240373,1538.2,1537.9,1.965]
[1674147885398,0.17240373,1538.2,1538.1,1.525]
[1674147885630,0.18143886,1538.3,1538.1,16.26904]
[1674147885788,0.18143886,1538.3,1538.2,11.0031]
[1674147886011,0.18143886,1538.3,1538.2,16.796314]
[1674147886452,0.18143886,1538.3,1538.2,23.297414]
[1674147887106,0.18143886,1538.3,1538.2,21.797414]
[1674147892056,0.18143886,1538.3,1538.2,2.793214]
[1674147892211,0.18143886,1538.3,1538.1,0.066]
[1674147892423,0.18143886,1538.3,1538.0,22.9802]
[1674147892889,0.18143886,1538.3,1538.0,24.5002]
[1674147893537,0.18143886,1538.3,1538.1,4.73]
[1674147893674,0.18143886,1538.3,1538.1,3.23]
[1674147893883,0.18143886,1538.3,1538.1,6.00302]
[1674147894157,0.18143886,1538.3,1538.1,6.06902]
[1674147895520,0.18143886,1538.3,1538.1,3.296]
[1674147895851,0.18143886,1538.3,1538.1,3.23]
[1674147902453,0.18143886,1538.3,1538.1,0.23]
[1674147902671,0.18143886,1538.3,1538.0,16.47848]
[1674147903238,0.18143886,1538.3,1538.0,9.9769]
[1674147903656,0.18143886,1538.3,1538.0,0.066]
[1674147903657,0.94192202,1538.3,1538.0,0.066]
[1674147903984,16.12361061,1538.3,1537.9,8.7971]
[1674147904180,14.68961061,1538.3,1537.9,8.7971]
[1674147904413,1.46896106,1538.2,1537.9,8.7971]
[1674147904605,7.97017106,1538.2,1537.9,8.7971]
[1674147904940,8.03617106,1538.2,1537.9,8.7971]
[1674147905197,6.56721,1538.2,1537.9,8.7971]
[1674147906113,6.56721,1538.2,1537.9,8.79343032]
[1674147910703,0.054,1538.2,1538.0,11.19489475]
[1674147910916,0.17699417,1538.4,1538.3,0.95671321]
[1674147911176,0.17699417,1538.4,1538.3,20.78442453]
[1674147911331,0.17699417,1538.4,1538.3,20.85042453]
[1674147911541,0.17699417,1538.4,1538.3,23.85042453]
[1674147914503,0.17699417,1538.4,1538.3,30.67316165]
[1674147914943,0.17699417,1538.4,1538.3,26.88542453]
[1674147915711,0.17699417,1538.4,1538.3,30.67350753]
[1674147915882,0.17699417,1538.4,1538.3,33.49540442]
[1674147916092,0.17699417,1538.4,1538.3,30.67350753]
[1674147916308,0.17699417,1538.4,1538.3,31.8022713]
[1674147916536,0.17699417,1538.4,1538.3,30.67350753]
[1674147916965,0.17699417,1538.4,1538.3,31.80227514]
[1674147917204,0.17699417,1538.4,1538.3,30.67350753]
[1674147917565,0.17699417,1538.4,1538.3,30.67866923]
[1674147918508,0.17699417,1538.4,1538.3,31.80741636]
[1674147918720,0.17699417,1538.4,1538.3,30.67866923]
[1674147919133,0.17699417,1538.4,1538.3,31.80742814]
[1674147919547,0.17699417,1538.4,1538.3,30.67760871]
[1674147919756,0.17699417,1538.4,1538.3,26.89058623]
[1674147920593,0.17699417,1538.4,1538.3,30.67725683]
[1674147920809,0.17699417,1538.4,1538.3,33.49906421]
[1674147921233,0.17699417,1538.4,1538.3,31.80597978]
[1674147922285,0.17699417,1538.4,1538.3,30.67725683]
[1674147922620,0.17699417,1538.4,1538.3,25.36958623]
[1674147923502,0.17699417,1538.4,1538.3,25.13958623]
[1674147923662,0.17699417,1538.4,1538.3,23.52475321]
[1674147924127,0.17699417,1538.4,1538.3,14.27407321]
[1674147924335,0.17699417,1538.4,1538.3,7.77339321]
[1674147924505,0.17699417,1538.4,1538.3,1.27271321]
[1674147924719,0.17699417,1538.4,1538.3,1.20671321]
[1674147932436,0.57834641,1538.4,1538.3,1.20671321]
[1674147934347,0.76385324,1538.4,1538.3,1.20671321]
[1674147934503,3.78085324,1538.4,1538.3,1.20671321]
[1674147935074,2.28085324,1538.4,1538.3,1.20671321]
[1674147935384,2.28085324,1538.4,1538.3,1.20453251]
[1674147939014,8.78111324,1538.4,1538.3,1.20453251]
[1674147939233,15.34737324,1538.4,1538.3,1.20453251]
[1674147940107,16.87237324,1538.4,1538.3,1.20453251]
[1674147942298,7.33011324,1538.4,1538.3,1.20453251]
[1674147944100,8.84811324,1538.4,1538.3,1.20453251]
[1674147944415,15.34837324,1538.4,1538.3,1.20453251]
[1674147946943,0.64434641,1538.4,1538.3,1.20453251]
[1674147947165,0.57834641,1538.4,1538.3,1.20453251]
[1674147949088,1e-08,1538.4,1538.3,1.20453251]
[1674147949783,1e-08,1538.4,1538.3,14.20589251]
[1674147949962,1.27672186,1538.5,1538.4,2.29999999]
[1674147950153,1.27672186,1538.5,1538.4,21.68110924]
[1674147950346,1.27672186,1538.5,1538.4,22.87584484]
[1674147950821,1.27672186,1538.5,1538.4,23.12584484]
[1674147951608,1.27672186,1538.5,1538.4,21.99710924]
[1674147951831,1.27672186,1538.5,1538.4,21.99510925]
[1674147952193,1.27672186,1538.5,1538.4,23.12381309]
[1674147953783,1.27672186,1538.5,1538.4,28.42093199]
[1674147953997,1.27672186,1538.5,1538.4,26.3419072]
[1674147954362,1.27672186,1538.5,1538.4,32.30941666]
[1674147954945,0.17669859,1538.7,1538.6,19.49823]
[1674147955256,0.17669859,1538.7,1538.6,24.31923]
[1674147955451,0.17669859,1538.7,1538.6,24.56923]
[1674147955852,0.17669859,1538.7,1538.6,23.04423]
[1674147966340,0.50093039,1538.7,1538.6,23.04423]
[1674147966553,0.50093039,1538.7,1538.6,27.09115777]
[1674147968815,0.50093039,1538.7,1538.6,28.61215777]
[1674147969858,1e-08,1538.7,1538.6,27.09115777]
[1674147970324,1e-08,1538.7,1538.6,35.10656777]
[1674147970745,1e-08,1538.7,1538.6,43.90176777]
[1674147976323,0.17628463,1538.8,1538.6,43.90176777]
[1674147976533,0.17628463,1538.8,1538.7,23.64315678]
[1674147976801,0.17628463,1538.8,1538.7,23.70915678]
[1674147977366,0.17628463,1538.8,1538.7,22.45915678]
[1674147977572,0.17628463,1538.8,1538.7,20.93415678]
[1674147984115,0.17628463,1538.8,1538.7,0.316]
[1674147984331,0.17628463,1538.8,1538.7,0.25]
[1674147988967,2.35641322,1538.8,1538.7,0.25]
[1674147989398,0.85641322,1538.8,1538.7,0.25]
[1674147989669,2.37341322,1538.8,1538.7,0.25]
[1674147989911,4.03670969,1538.8,1538.7,0.25]
[1674147990575,4.03670969,1538.8,1538.7,0.24620259]
[1674147991365,0.85641322,1538.8,1538.7,0.24620259]
[1674147991618,0.17669859,1538.9,1538.8,7.85584119]
[1674147991847,0.17669859,1538.9,1538.8,10.92184119]
[1674147992422,0.17669859,1538.9,1538.8,11.17184119]
[1674147994540,0.17669859,1538.9,1538.8,4.67327119]
[1674147994747,0.17669859,1538.9,1538.8,4.60727119]
[1674147995624,0.17669859,1538.9,1538.8,1.60727119]
[1674147997383,0.17669859,1538.9,1538.8,8.10584119]
[1674147997590,0.17669859,1538.9,1538.8,8.17184119]
[1674148007967,0.17669859,1538.9,1538.8,8.16984119]
[1674148008139,0.17669859,1538.9,1538.8,8.17184119]
[1674148010369,0.17669859,1538.9,1538.8,1.67327119]
[1674148010693,0.17669859,1538.9,1538.8,8.10584119]
[1674148010833,0.17669859,1538.9,1538.8,1.67327119]
[1674148011043,0.17669859,1538.9,1538.8,1.60727119]
[1674148020619,2.37382718,1538.9,1538.8,1.60459631]
[1674148020826,2.7333906,1538.9,1538.8,1.60459631]
[1674148021474,2.05326201,1538.9,1538.8,1.60459631]
[1674148022255,0.17669859,1538.9,1538.8,1.60459631]
[1674148022446,1e-08,1538.9,1538.8,17.47523931]
[1674148022659,1e-08,1538.9,1538.8,20.54123931]
[1674148022834,1e-08,1538.9,1538.8,19.02623931]
[1674148023062,1e-08,1538.9,1538.8,22.22570818]
[1674148023306,1e-08,1538.9,1538.8,23.91873216]
[1674148024194,1e-08,1538.9,1538.8,22.22570818]
[1674148024410,1e-08,1538.9,1538.8,21.09720518]
[1674148024867,1e-08,1538.9,1538.8,22.22569784]
[1674148026544,1e-08,1538.9,1538.8,23.91839679]
[1674148026734,1e-08,1538.9,1538.8,26.12322222]
[1674148026954,1e-08,1538.9,1538.8,27.14353908]
[1674148027191,1e-08,1538.9,1538.8,26.12322222]
[1674148031043,1e-08,1538.9,1538.8,25.44239679]
[1674148031583,1e-08,1539.0,1538.8,25.44239679]
[1674148031825,1e-08,1539.0,1538.9,5.77423968]
[1674148032001,1e-08,1539.0,1538.9,18.83651968]
[1674148032660,1e-08,1539.0,1538.9,19.08651968]
[1674148033163,1e-08,1539.0,1538.9,20.21491279]
[1674148033357,1e-08,1539.0,1538.9,21.72491279]
[1674148033567,1e-08,1539.0,1538.9,24.09824726]
[1674148033985,1e-08,1539.0,1538.9,33.17054726]
[1674148034652,1e-08,1539.0,1538.9,43.40384726]
[1674148035116,1e-08,1539.0,1538.9,44.42416412]
[1674148035429,1e-08,1539.0,1538.9,43.40384726]
[1674148040267,1e-08,1539.0,1538.9,42.72302183]
[1674148041640,0.18939999,1539.1,1539.0,0.00258774]
[1674148041952,0.18939999,1539.1,1539.0,6.50030774]
[1674148042100,0.18939999,1539.1,1539.0,6.79630774]
[1674148042577,0.18939999,1539.1,1539.0,7.04630774]
[1674148050467,0.18939999,1539.1,1539.0,0.31858774]
[1674148050619,0.18939999,1539.1,1539.0,0.25258774]
[1674148051528,17.92411957,1539.1,1538.8,1.42059631]
[1674148051744,2.20549104,1538.9,1538.8,1.35459631]
[1674148052065,22.86111943,1538.9,1538.8,1.35459631]
[1674148052230,22.92711943,1538.9,1538.8,1.35459631]
[1674148052444,23.38562725,1538.9,1538.8,1.35459631]
[1674148053215,30.90396014,1538.9,1538.8,1.35459631]
[1674148053364,31.7484691,1538.9,1538.8,1.35459631]
[1674148053579,34.7484691,1538.9,1538.3,0.066]
[1674148053855,8.01501,1538.5,1538.1,0.10051226]
[1674148054037,1.525,1538.4,1538.1,0.03451226]
[1674148054369,9.52068,1538.3,1538.1,0.03451226]
[1674148054686,8.08668,1538.3,1538.1,0.03451226]
[1674148057270,6.50032,1538.4,1538.3,1.13819647]
[1674148057483,8.067603,1538.4,1538.3,1.13819647]
[1674148058466,8.67853678,1538.4,1538.3,1.13819647]
[1674148060531,10.19453678,1538.4,1538.3,1.13819647]
[1674148061361,2.51945368,1538.3,1537.7,0.06]
[1674148061596,2.51945368,1538.3,1537.5,0.10564398]
[1674148061597,3.0,1538.1,1537.5,0.10564398]
[1674148061830,6.77944759,1538.0,1537.5,0.10764398]
[1674148062173,28.97471146,1538.0,1537.5,0.04164398]
[1674148062462,2.32242387,1537.9,1537.5,0.04164398]
[1674148062784,1.514,1537.6,1537.5,0.04164398]
[1674148062998,8.16904,1537.6,1537.5,0.04164398]
[1674148063305,16.74148,1537.6,1537.5,0.04164398]
[1674148063674,18.24148,1537.6,1537.5,0.04164398]
[1674148066202,21.89841243,1537.6,1537.5,0.04164398]
[1674148066411,25.64120067,1537.6,1537.5,0.04164398]
[1674148066683,1.5,1537.5,1537.3,0.04164398]
[1674148066874,23.03334,1537.4,1537.3,0.04164398]
[1674148067098,23.09934,1537.4,1537.3,0.04164398]
[1674148068888,13.56286,1537.4,1537.3,0.04164398]
[1674148070843,15.08786,1537.4,1537.3,0.04164398]
[1674148071050,17.399563,1537.4,1537.3,0.04164398]
[1674148071601,16.72180162,1537.4,1537.3,0.04164398]
[1674148076400,16.23390162,1537.4,1537.3,0.04164398]
[1674148077258,15.02892208,1537.4,1537.3,0.04164398]
[1674148080238,16.54192208,1537.4,1537.3,0.04164398]
[1674148081903,15.01692208,1537.4,1537.3,0.04164398]
[1674148082262,25.8016021,1537.4,1536.7,0.02357538]
[1674148082471,19.51878,1537.0,1536.7,0.02357538]
[1674148082633,19.58478,1537.0,1536.7,0.02357538]
[1674148086837,1.5,1536.9,1536.7,0.02357538]
[1674148087099,19.67106,1536.8,1536.7,0.02357538]
[1674148087318,17.929172,1536.8,1536.7,0.02357538]
[1674148087871,17.779172,1536.8,1536.7,0.02357538]
[1674148090657,0.066,1536.8,1536.7,1.05157538]
[1674148090871,6.50662,1536.9,1536.7,1.05157538]
[1674148090872,6.57262,1536.9,1536.7,1.05157538]
[1674148091285,6.57262,1536.9,1536.7,0.02874245]
[1674148091494,6.57262,1536.9,1536.7,0.02357538]
[1674148093077,6.57262,1536.9,1536.7,0.02874245]
[1674148094512,0.066,1536.9,1536.7,1.70058862]
[1674148094759,6.59326,1537.0,1536.7,1.70058862]
[1674148095400,0.087,1537.0,1536.7,1.70058862]
[1674148095565,0.021,1537.0,1536.9,1.5]
[1674148095775,0.021,1537.0,1536.8,1.69505886]
[1674148096232,0.021,1537.0,1536.9,1.513]
[1674148096462,0.066,1537.1,1536.9,1.513]
[1674148096463,0.066,1537.2,1537.0,0.02814799]
[1674148096664,6.57096,1537.3,1537.1,1.525]
[1674148097017,0.066,1537.3,1537.1,1.525]
[1674148097164,11.93664367,1537.4,1537.1,1.525]
[1674148097724,12.42454367,1537.4,1537.1,1.525]
[1674148097934,11.93664367,1537.4,1537.1,1.525]
[1674148098527,11.93664367,1537.4,1537.0,1.97223289]
[1674148099424,13.82952104,1537.4,1537.0,0.02814799]
[1674148101052,15.32952104,1537.4,1537.0,0.02814799]
[1674148101269,13.82952104,1537.4,1537.0,2.8554125]
[1674148101513,13.82952104,1537.4,1537.1,1.12972773]
[1674148101723,1.3829521,1537.3,1537.1,1.12972773]
[1674148101934,19.51599,1537.2,1537.1,1.12972773]
[1674148102108,19.58199,1537.2,1537.1,1.12972773]
[1674148102731,19.58199,1537.2,1537.0,2.8554125]
[1674148102941,19.58199,1537.2,1537.1,1.12972773]
[1674148103413,19.58199,1537.2,1537.0,2.8554125]
[1674148103643,19.58199,1537.2,1537.1,1.12972773]
[1674148106745,21.540189,1537.2,1537.0,0.02814799]
[1674148106957,23.553089,1537.2,1537.0,0.02814799]
[1674148107595,1.5,1537.1,1537.0,0.02814799]
[1674148107805,14.5115,1537.1,1537.0,0.02814799]
[1674148108053,14.5775,1537.1,1537.0,0.02814799]